[Event "Betsys MČR v online bleskovém šachu 2021"]
[Site "Chess.com"]
[Date "2021.04.17"]
[Round "8"]
[White "TrickyPeat"]
[Black "Pokemonchess"]
[Result "1-0"]
[WhiteElo "2195"]
[BlackElo "1935"]
[TimeControl "180+1"]
[EndTime "10:22:09 PDT"]
[Termination "Uživatel TrickyPeat zvítězil po vzdání soupeře"]

1. e4 {[%clk 0:03:00.9]} 1... c5 {[%clk 0:02:59.1]} 2. Nf3 {[%clk 0:03:00]} 2...
Nc6 {[%clk 0:02:58.6]} 3. d3 {[%clk 0:03:00.1]} 3... g6 {[%clk 0:02:57.4]} 4.
Nbd2 {[%clk 0:03:00.6]} 4... Bg7 {[%clk 0:02:57.3]} 5. g3 {[%clk 0:03:01.2]}
5... Nf6 {[%clk 0:02:54.9]} 6. Bg2 {[%clk 0:03:01.8]} 6... d6 {[%clk 0:02:55.3]}
7. O-O {[%clk 0:03:01.9]} 7... O-O {[%clk 0:02:55.8]} 8. Re1 {[%clk 0:03:02.2]}
8... Bg4 {[%clk 0:02:55.2]} 9. h3 {[%clk 0:03:00.8]} 9... Bd7 {[%clk 0:02:52]}
10. a4 {[%clk 0:02:58.3]} 10... Qc8 {[%clk 0:02:33.6]} 11. Kh2 {[%clk
0:02:57.5]} 11... Qc7 {[%clk 0:02:32.6]} 12. Nc4 {[%clk 0:02:54]} 12... a6
{[%clk 0:02:26.7]} 13. Bf4 {[%clk 0:02:45.3]} 13... b5 {[%clk 0:02:17]} 14. axb5
{[%clk 0:02:42.5]} 14... axb5 {[%clk 0:02:15.2]} 15. Rxa8 {[%clk 0:02:37.3]}
15... Rxa8 {[%clk 0:02:16.1]} 16. Ne3 {[%clk 0:02:30.2]} 16... e5 {[%clk
0:02:09.4]} 17. Bg5 {[%clk 0:02:27.3]} 17... Ne8 {[%clk 0:01:54.4]} 18. Nd5
{[%clk 0:02:24.3]} 18... Qa5 {[%clk 0:01:50.1]} 19. c3 {[%clk 0:02:17.9]} 19...
f6 {[%clk 0:01:40.7]} 20. Bd2 {[%clk 0:02:13.4]} 20... Nc7 {[%clk 0:01:36.2]}
21. Nxc7 {[%clk 0:02:09.9]} 21... Qxc7 {[%clk 0:01:34.7]} 22. Qb3+ {[%clk
0:02:09.6]} 22... Kf8 {[%clk 0:01:29.3]} 23. h4 {[%clk 0:01:44.9]} 23... Na5
{[%clk 0:01:08.3]} 24. Qd5 {[%clk 0:01:36.6]} 24... Re8 {[%clk 0:00:56.1]} 25.
Bh3 {[%clk 0:01:17.2]} 25... Bc6 {[%clk 0:00:37.6]} 26. Qa2 {[%clk 0:01:12.7]}
26... Ra8 {[%clk 0:00:35.2]} 27. Qb1 {[%clk 0:00:55]} 27... Nb3 {[%clk
0:00:28.9]} 28. Qc2 {[%clk 0:00:54.3]} 28... Nxd2 {[%clk 0:00:28.6]} 29. Nxd2
{[%clk 0:00:46.4]} 29... Qa7 {[%clk 0:00:28.2]} 30. h5 {[%clk 0:00:44.1]} 30...
Qa4 {[%clk 0:00:26.4]} 31. Qxa4 {[%clk 0:00:37.6]} 31... Rxa4 {[%clk 0:00:27.3]}
32. hxg6 {[%clk 0:00:34.5]} 32... hxg6 {[%clk 0:00:28.2]} 33. Be6 {[%clk
0:00:32.9]} 33... Ke7 {[%clk 0:00:26.8]} 34. Bb3 {[%clk 0:00:31]} 34... Ra8
{[%clk 0:00:26.7]} 35. Kg2 {[%clk 0:00:29.8]} 35... Bd7 {[%clk 0:00:26.7]} 36.
Rh1 {[%clk 0:00:27]} 36... Rh8 {[%clk 0:00:24.3]} 37. Ra1 {[%clk 0:00:23.6]}
37... Rb8 {[%clk 0:00:20.6]} 38. Ra7 {[%clk 0:00:20.9]} 38... Bh6 {[%clk
0:00:20.9]} 39. Nf3 {[%clk 0:00:17.3]} 39... Bg7 {[%clk 0:00:20.6]} 40. Nh4
{[%clk 0:00:16.1]} 40... g5 {[%clk 0:00:17.4]} 41. Nf5+ {[%clk 0:00:15.1]} 41...
Kd8 {[%clk 0:00:11.6]} 42. Nxg7 {[%clk 0:00:13.8]} 42... Bg4 {[%clk 0:00:11.6]}
43. Nf5 {[%clk 0:00:12]} 43... Bxf5 {[%clk 0:00:11.5]} 44. exf5 {[%clk
0:00:11.2]} 44... Rb6 {[%clk 0:00:11.3]} 45. Bd5 {[%clk 0:00:11.1]} 45... Ke8
{[%clk 0:00:10]} 46. Kf3 {[%clk 0:00:10.6]} 46... b4 {[%clk 0:00:10]} 47. c4
{[%clk 0:00:09.7]} 47... b3 {[%clk 0:00:10.1]} 48. Kg4 {[%clk 0:00:09.3]} 48...
Rb4 {[%clk 0:00:09.2]} 49. Kh5 {[%clk 0:00:08.8]} 49... Rb8 {[%clk 0:00:06.9]}
50. Kg6 {[%clk 0:00:09]} 50... Kf8 {[%clk 0:00:04.5]} 51. Kxf6 {[%clk
0:00:06.9]} 51... Rb6 {[%clk 0:00:04.1]} 52. Ra8+ {[%clk 0:00:06.2]} 52... Rb8
{[%clk 0:00:03.5]} 1-0

[Event "Betsys MČR v online bleskovém šachu 2021"]
[Site "Chess.com"]
[Date "2021.04.17"]
[Round "8"]
[White "kaprasov"]
[Black "honzasoucek"]
[Result "1-0"]
[WhiteElo "1866"]
[BlackElo "1623"]
[TimeControl "180+1"]
[EndTime "10:22:09 PDT"]
[Termination "Uživatel kaprasov zvítězil na čas"]

1. d4 {[%clk 0:03:00.9]} 1... d5 {[%clk 0:02:57.9]} 2. Bf4 {[%clk 0:02:48.2]}
2... Nf6 {[%clk 0:02:56.4]} 3. e3 {[%clk 0:02:44.8]} 3... c5 {[%clk 0:02:56.6]}
4. c3 {[%clk 0:02:44.5]} 4... Nc6 {[%clk 0:02:51.8]} 5. Nd2 {[%clk 0:02:44.8]}
5... Qb6 {[%clk 0:02:52]} 6. Qb3 {[%clk 0:02:20.7]} 6... c4 {[%clk 0:02:49]} 7.
Qc2 {[%clk 0:02:20.9]} 7... Bg4 {[%clk 0:02:32.5]} 8. h3 {[%clk 0:02:10.8]} 8...
Bh5 {[%clk 0:02:31.9]} 9. g4 {[%clk 0:02:11]} 9... Bg6 {[%clk 0:02:31.8]} 10.
Qc1 {[%clk 0:02:11.5]} 10... e6 {[%clk 0:02:27.6]} 11. Ngf3 {[%clk 0:02:11.1]}
11... Be7 {[%clk 0:02:06.9]} 12. Ne5 {[%clk 0:02:09.1]} 12... Nxe5 {[%clk
0:01:57.1]} 13. Bxe5 {[%clk 0:02:10]} 13... O-O {[%clk 0:01:54.5]} 14. Bf4
{[%clk 0:02:10.9]} 14... Bd6 {[%clk 0:01:50.6]} 15. Bg2 {[%clk 0:01:47.6]} 15...
Nd7 {[%clk 0:01:33.5]} 16. O-O {[%clk 0:01:45.6]} 16... a5 {[%clk 0:01:03.3]}
17. Bxd6 {[%clk 0:01:39.6]} 17... Qxd6 {[%clk 0:01:02.5]} 18. e4 {[%clk
0:01:40]} 18... dxe4 {[%clk 0:00:54.3]} 19. Nxe4 {[%clk 0:01:35.3]} 19... Qc7
{[%clk 0:00:20.5]} 20. f4 {[%clk 0:01:29.3]} 20... Bxe4 {[%clk 0:00:12.2]} 21.
Bxe4 {[%clk 0:01:28.9]} 21... Nf6 {[%clk 0:00:10.8]} 22. Bg2 {[%clk 0:01:13]}
22... Rab8 {[%clk 0:00:11]} 23. Qe3 {[%clk 0:01:06.5]} 23... b5 {[%clk
0:00:10.4]} 24. a3 {[%clk 0:01:04.8]} 24... b4 {[%clk 0:00:09.8]} 25. axb4
{[%clk 0:01:03.9]} 25... axb4 {[%clk 0:00:10.3]} 26. Qe5 {[%clk 0:01:02.6]}
26... Qxe5 {[%clk 0:00:07.8]} 27. fxe5 {[%clk 0:01:02.7]} 27... Nd5 {[%clk
0:00:07.8]} 28. Bxd5 {[%clk 0:01:01.4]} 28... exd5 {[%clk 0:00:08.2]} 29. Ra4
{[%clk 0:01:01.1]} 29... bxc3 {[%clk 0:00:07.5]} 30. bxc3 {[%clk 0:01:01.1]}
30... Rb3 {[%clk 0:00:08]} 31. Rc1 {[%clk 0:00:56.6]} 31... Rfb8 {[%clk
0:00:07.8]} 32. Kg2 {[%clk 0:00:47.7]} 32... g6 {[%clk 0:00:05.3]} 33. Ra5
{[%clk 0:00:45.7]} 33... R8b5 {[%clk 0:00:04]} 34. Ra8+ {[%clk 0:00:36.6]} 34...
Kg7 {[%clk 0:00:04.2]} 35. Ra7 {[%clk 0:00:37.1]} 35... Rb7 {[%clk 0:00:04.1]}
36. Ra5 {[%clk 0:00:33.5]} 36... R7b5 {[%clk 0:00:04.5]} 37. Ra7 {[%clk
0:00:28.5]} 37... Rb7 {[%clk 0:00:04]} 38. Ra2 {[%clk 0:00:28.6]} 38... Rb2+
{[%clk 0:00:02.6]} 39. Rc2 {[%clk 0:00:27.9]} 39... Rxa2 {[%clk 0:00:02]} 40.
Rxa2 {[%clk 0:00:28.1]} 40... Rb3 {[%clk 0:00:02.8]} 41. Rc2 {[%clk 0:00:28.3]}
41... f6 {[%clk 0:00:02.1]} 42. exf6+ {[%clk 0:00:19.8]} 42... Kxf6 {[%clk
0:00:02.6]} 43. Kf3 {[%clk 0:00:20.4]} 43... Kg5 {[%clk 0:00:02.7]} 44. Kg3
{[%clk 0:00:20.2]} 44... Kf6 {[%clk 0:00:02.4]} 45. Kf4 {[%clk 0:00:20.1]} 45...
h6 {[%clk 0:00:02.3]} 46. h4 {[%clk 0:00:19.9]} 46... g5+ {[%clk 0:00:02]} 47.
hxg5+ {[%clk 0:00:20.2]} 47... hxg5+ {[%clk 0:00:02.5]} 48. Ke3 {[%clk
0:00:19.7]} 48... Kg6 {[%clk 0:00:02.6]} 49. Kd2 {[%clk 0:00:19.4]} 49... Kf6
{[%clk 0:00:03]} 50. Ra2 {[%clk 0:00:19.4]} 50... Rb6 {[%clk 0:00:02]} 51. Kc2
{[%clk 0:00:17.3]} 51... Ke6 {[%clk 0:00:02.2]} 52. Ra8 {[%clk 0:00:16.7]} 52...
Kf6 {[%clk 0:00:01.4]} 53. Rf8+ {[%clk 0:00:16.2]} 53... Ke6 {[%clk 0:00:01.6]}
54. Rg8 {[%clk 0:00:16]} 54... Kf6 {[%clk 0:00:01.2]} 55. Rf8+ {[%clk
0:00:16.5]} 55... Kg6 {[%clk 0:00:01.5]} 56. Rd8 {[%clk 0:00:16.5]} 1-0

[Event "Betsys MČR v online bleskovém šachu 2021"]
[Site "Chess.com"]
[Date "2021.04.17"]
[Round "8"]
[White "JIDEMONI"]
[Black "ReceptiveYoyo"]
[Result "0-1"]
[WhiteElo "1881"]
[BlackElo "1368"]
[TimeControl "180+1"]
[EndTime "10:22:11 PDT"]
[Termination "Uživatel ReceptiveYoyo zvítězil po vzdání soupeře"]

1. d4 {[%clk 0:03:00.9]} 1... d5 {[%clk 0:02:59.1]} 2. Nf3 {[%clk 0:03:00.4]}
2... e6 {[%clk 0:02:58.5]} 3. e3 {[%clk 0:03:00.2]} 3... Nf6 {[%clk 0:02:51.7]}
4. Bd3 {[%clk 0:02:59.8]} 4... Bd6 {[%clk 0:02:52.1]} 5. O-O {[%clk 0:02:58]}
5... c5 {[%clk 0:02:51.6]} 6. b3 {[%clk 0:02:57.9]} 6... cxd4 {[%clk 0:02:48.6]}
7. exd4 {[%clk 0:02:57.5]} 7... Nc6 {[%clk 0:02:47.9]} 8. Bb2 {[%clk 0:02:57.5]}
8... O-O {[%clk 0:02:46.9]} 9. a3 {[%clk 0:02:57.8]} 9... Qe7 {[%clk 0:02:43.4]}
10. Nbd2 {[%clk 0:02:57.6]} 10... a6 {[%clk 0:02:28.3]} 11. Ne5 {[%clk
0:02:56.8]} 11... Nd7 {[%clk 0:02:25.1]} 12. f4 {[%clk 0:02:56.2]} 12... f6
{[%clk 0:02:20.4]} 13. Nxd7 {[%clk 0:02:36.5]} 13... Bxd7 {[%clk 0:02:21.3]} 14.
Qh5 {[%clk 0:02:33.8]} 14... g6 {[%clk 0:02:18.6]} 15. Qh6 {[%clk 0:02:33.9]}
15... Qg7 {[%clk 0:02:16.5]} 16. Qh4 {[%clk 0:02:28.2]} 16... g5 {[%clk
0:02:14.2]} 17. fxg5 {[%clk 0:02:26.5]} 17... fxg5 {[%clk 0:02:14.3]} 18. Qh5
{[%clk 0:02:17.3]} 18... h6 {[%clk 0:02:06]} 19. Nf3 {[%clk 0:02:08.6]} 19...
Bf4 {[%clk 0:01:58.4]} 20. Rae1 {[%clk 0:02:00.3]} 20... Rae8 {[%clk 0:01:48]}
21. Ne5 {[%clk 0:01:49]} 21... Nxe5 {[%clk 0:01:45.9]} 22. dxe5 {[%clk
0:01:47.4]} 22... Rc8 {[%clk 0:01:41.1]} 23. g3 {[%clk 0:01:39.5]} 23... Bd2
{[%clk 0:01:34.2]} 24. Rxf8+ {[%clk 0:01:37]} 24... Kxf8 {[%clk 0:01:32.1]} 25.
Rf1+ {[%clk 0:01:34.9]} 25... Kg8 {[%clk 0:01:26.7]} 26. Bg6 {[%clk 0:01:24.3]}
26... Be3+ {[%clk 0:01:22.2]} 27. Kg2 {[%clk 0:01:23.2]} 27... d4 {[%clk
0:01:20.8]} 28. Rf7 {[%clk 0:01:19.3]} 28... Bc6+ {[%clk 0:01:15.9]} 29. Kh3
{[%clk 0:01:18.2]} 29... g4+ {[%clk 0:00:59]} 30. Kxg4 {[%clk 0:01:09.5]} 30...
Rf8 {[%clk 0:00:25.2]} 31. Rxg7+ {[%clk 0:01:06.5]} 31... Kxg7 {[%clk
0:00:25.2]} 32. Kh3 {[%clk 0:00:30.5]} 32... Rf2 {[%clk 0:00:23]} 33. Be8 {[%clk
0:00:26.8]} 33... Bg2+ {[%clk 0:00:20.7]} 34. Kh4 {[%clk 0:00:24.9]} 34... Bg5+
{[%clk 0:00:18.3]} 35. Qxg5+ {[%clk 0:00:19.6]} 35... hxg5+ {[%clk 0:00:19.2]}
36. Kxg5 {[%clk 0:00:19.7]} 36... d3 {[%clk 0:00:14]} 37. Bd4 {[%clk 0:00:13.3]}
37... dxc2 {[%clk 0:00:09]} 38. Be3 {[%clk 0:00:12.9]} 38... Rf1 {[%clk
0:00:07.1]} 39. Kh5 {[%clk 0:00:10.3]} 39... c1=Q {[%clk 0:00:06.3]} 40. Bxc1
{[%clk 0:00:10.3]} 40... Rxc1 {[%clk 0:00:07.2]} 41. Bd7 {[%clk 0:00:09.5]}
41... Bf3+ {[%clk 0:00:06.7]} 42. Kh4 {[%clk 0:00:08]} 42... Kf7 {[%clk
0:00:07]} 43. Bc8 {[%clk 0:00:07.2]} 43... Rxc8 {[%clk 0:00:03.6]} 44. Kg5
{[%clk 0:00:06.8]} 44... Rc3 {[%clk 0:00:04.5]} 45. Kf4 {[%clk 0:00:06.4]} 45...
Rxb3 {[%clk 0:00:05.4]} 46. h3 {[%clk 0:00:06.4]} 46... Rxa3 {[%clk 0:00:06.3]}
47. g4 {[%clk 0:00:06.9]} 47... Ra4+ {[%clk 0:00:03.4]} 48. Kxf3 {[%clk
0:00:06.8]} 48... Ra3+ {[%clk 0:00:04.3]} 49. Kf4 {[%clk 0:00:06.5]} 49... Rd3
{[%clk 0:00:05]} 50. Kg5 {[%clk 0:00:06.4]} 50... Rd4 {[%clk 0:00:05.6]} 51. h4
{[%clk 0:00:06.4]} 51... Rd3 {[%clk 0:00:06.5]} 52. h5 {[%clk 0:00:06.9]} 52...
a5 {[%clk 0:00:07.4]} 53. h6 {[%clk 0:00:06.3]} 53... Rh3 {[%clk 0:00:08]} 0-1

[Event "Betsys MČR v online bleskovém šachu 2021"]
[Site "Chess.com"]
[Date "2021.04.17"]
[Round "8"]
[White "kominekmart"]
[Black "p_kana"]
[Result "0-1"]
[WhiteElo "1570"]
[BlackElo "1794"]
[TimeControl "180+1"]
[EndTime "10:22:12 PDT"]
[Termination "Uživatel p_kana zvítězil na čas"]

1. e4 {[%clk 0:03:00.9]} 1... c5 {[%clk 0:02:55.3]} 2. Nf3 {[%clk 0:02:59.9]}
2... e6 {[%clk 0:02:55.2]} 3. c3 {[%clk 0:02:59.7]} 3... d5 {[%clk 0:02:54.1]}
4. exd5 {[%clk 0:02:57.7]} 4... Qxd5 {[%clk 0:02:55]} 5. d4 {[%clk 0:02:55.1]}
5... Nf6 {[%clk 0:02:53.9]} 6. Be2 {[%clk 0:02:45]} 6... Nc6 {[%clk 0:02:53]} 7.
dxc5 {[%clk 0:02:36.5]} 7... Qxd1+ {[%clk 0:02:50.7]} 8. Bxd1 {[%clk 0:02:34.6]}
8... Bxc5 {[%clk 0:02:49.6]} 9. O-O {[%clk 0:02:33.7]} 9... b6 {[%clk
0:02:48.6]} 10. Ba4 {[%clk 0:02:30.6]} 10... Bb7 {[%clk 0:02:36.4]} 11. Bg5
{[%clk 0:02:22]} 11... O-O {[%clk 0:02:34.4]} 12. Bxf6 {[%clk 0:02:20.4]} 12...
gxf6 {[%clk 0:02:32.2]} 13. Nbd2 {[%clk 0:02:16.4]} 13... Rfd8 {[%clk
0:02:26.4]} 14. Ne4 {[%clk 0:02:12.9]} 14... Be7 {[%clk 0:02:25]} 15. Rad1
{[%clk 0:02:10.7]} 15... f5 {[%clk 0:02:21]} 16. Ng3 {[%clk 0:02:04]} 16... Kf8
{[%clk 0:02:07.6]} 17. Rd2 {[%clk 0:02:02.2]} 17... Rxd2 {[%clk 0:02:04]} 18.
Nxd2 {[%clk 0:02:01.7]} 18... Ne5 {[%clk 0:02:01.9]} 19. Rd1 {[%clk 0:01:55.4]}
19... Rd8 {[%clk 0:01:54.2]} 20. Ndf1 {[%clk 0:01:51.1]} 20... Rxd1 {[%clk
0:01:51.6]} 21. Bxd1 {[%clk 0:01:50.5]} 21... Bd5 {[%clk 0:01:48.7]} 22. b3
{[%clk 0:01:46.5]} 22... Nd3 {[%clk 0:01:36.1]} 23. Ne3 {[%clk 0:01:40.2]} 23...
Bc6 {[%clk 0:01:16.8]} 24. Ne2 {[%clk 0:01:34.2]} 24... Bf6 {[%clk 0:01:07.1]}
25. Bc2 {[%clk 0:01:23.1]} 25... Nc5 {[%clk 0:01:00.8]} 26. Nd4 {[%clk
0:01:16.7]} 26... Bd7 {[%clk 0:00:56.4]} 27. Kf1 {[%clk 0:01:12.8]} 27... Ne4
{[%clk 0:00:55.6]} 28. Bxe4 {[%clk 0:01:01.4]} 28... fxe4 {[%clk 0:00:54.8]} 29.
Nec2 {[%clk 0:01:00.6]} 29... Bg7 {[%clk 0:00:50.1]} 30. Ke2 {[%clk 0:00:59.9]}
30... f5 {[%clk 0:00:48.3]} 31. Ke3 {[%clk 0:00:58.4]} 31... Bh6+ {[%clk
0:00:46.1]} 32. Ke2 {[%clk 0:00:51]} 32... Ke7 {[%clk 0:00:46]} 33. Nb4 {[%clk
0:00:50.3]} 33... Kd6 {[%clk 0:00:39.8]} 34. Nbc2 {[%clk 0:00:41]} 34... e5
{[%clk 0:00:33.8]} 35. Nxf5+ {[%clk 0:00:14.7]} 35... Bxf5 {[%clk 0:00:34.7]}
36. f3 {[%clk 0:00:13.9]} 36... exf3+ {[%clk 0:00:34.2]} 37. gxf3 {[%clk
0:00:13]} 37... Bxc2 {[%clk 0:00:34.3]} 38. Kf2 {[%clk 0:00:11.3]} 38... Bd2
{[%clk 0:00:31.6]} 39. Ke2 {[%clk 0:00:10.7]} 39... Bxc3 {[%clk 0:00:30.8]} 40.
Ke3 {[%clk 0:00:10]} 40... Kd5 {[%clk 0:00:30.3]} 41. Ke2 {[%clk 0:00:09.6]}
41... e4 {[%clk 0:00:30.1]} 42. fxe4+ {[%clk 0:00:09.1]} 42... Kxe4 {[%clk
0:00:30.6]} 43. Kf2 {[%clk 0:00:08.7]} 43... Bb1 {[%clk 0:00:30.3]} 44. a3
{[%clk 0:00:07.7]} 44... Ba2 {[%clk 0:00:29.5]} 45. b4 {[%clk 0:00:07.1]} 45...
Bb2 {[%clk 0:00:29.5]} 46. a4 {[%clk 0:00:07]} 46... Ba3 {[%clk 0:00:29.6]} 47.
b5 {[%clk 0:00:06.1]} 47... Bb3 {[%clk 0:00:24.6]} 48. a5 {[%clk 0:00:06.2]}
48... bxa5 {[%clk 0:00:17.4]} 49. b6 {[%clk 0:00:03.8]} 49... axb6 {[%clk
0:00:16.1]} 50. h4 {[%clk 0:00:03.4]} 50... h5 {[%clk 0:00:16.5]} 51. Ke2 {[%clk
0:00:02.2]} 51... Be7 {[%clk 0:00:16.9]} 52. Kd2 {[%clk 0:00:02.1]} 52... Bxh4
{[%clk 0:00:16.7]} 53. Ke2 {[%clk 0:00:02.5]} 53... Bg5 {[%clk 0:00:15.7]} 0-1

[Event "Betsys MČR v online bleskovém šachu 2021"]
[Site "Chess.com"]
[Date "2021.04.17"]
[Round "8"]
[White "Tomasn2003"]
[Black "TomSedmihradsky"]
[Result "1-0"]
[WhiteElo "1148"]
[BlackElo "1439"]
[TimeControl "180+1"]
[EndTime "10:22:12 PDT"]
[Termination "Uživatel Tomasn2003 zvítězil na čas"]

1. b3 {[%clk 0:03:00.9]} 1... e5 {[%clk 0:02:57.3]} 2. Bb2 {[%clk 0:03:01]} 2...
Nc6 {[%clk 0:02:56.4]} 3. e3 {[%clk 0:03:00.6]} 3... d5 {[%clk 0:02:55.7]} 4.
Bb5 {[%clk 0:02:59.7]} 4... Bd7 {[%clk 0:02:54.1]} 5. Nf3 {[%clk 0:02:58.9]}
5... f6 {[%clk 0:02:53.4]} 6. Bxc6 {[%clk 0:02:49.7]} 6... Bxc6 {[%clk
0:02:50.4]} 7. Nc3 {[%clk 0:02:47.5]} 7... d4 {[%clk 0:02:41]} 8. exd4 {[%clk
0:02:45.8]} 8... exd4 {[%clk 0:02:36.2]} 9. Qe2+ {[%clk 0:02:40.4]} 9... Ne7
{[%clk 0:02:11.8]} 10. Ne4 {[%clk 0:02:09.3]} 10... Qd5 {[%clk 0:01:55.9]} 11.
d3 {[%clk 0:01:55.4]} 11... f5 {[%clk 0:01:43.8]} 12. Ned2 {[%clk 0:01:49.7]}
12... Rd8 {[%clk 0:01:23.2]} 13. O-O-O {[%clk 0:01:23.2]} 13... f4 {[%clk
0:01:13.3]} 14. Nxd4 {[%clk 0:01:06.8]} 14... Rg8 {[%clk 0:00:56.5]} 15. Nxc6
{[%clk 0:01:02.5]} 15... Qxc6 {[%clk 0:00:53.8]} 16. Nf3 {[%clk 0:00:57.8]}
16... g6 {[%clk 0:00:38.9]} 17. Rhe1 {[%clk 0:00:42]} 17... Rd7 {[%clk
0:00:34.8]} 18. h3 {[%clk 0:00:20.2]} 18... Kd8 {[%clk 0:00:23.7]} 19. Qe6
{[%clk 0:00:19.8]} 19... Qxe6 {[%clk 0:00:21.9]} 20. Rxe6 {[%clk 0:00:19.5]}
20... Rd6 {[%clk 0:00:18.5]} 21. Rxd6+ {[%clk 0:00:18.6]} 21... cxd6 {[%clk
0:00:18]} 22. Re1 {[%clk 0:00:19]} 22... Kd7 {[%clk 0:00:17.5]} 23. Bf6 {[%clk
0:00:18.7]} 23... b6 {[%clk 0:00:12.7]} 24. Bxe7 {[%clk 0:00:18.2]} 24... Bxe7
{[%clk 0:00:12]} 25. Nd4 {[%clk 0:00:18.1]} 25... Bg5 {[%clk 0:00:10.7]} 26. f3
{[%clk 0:00:16.4]} 26... Rc8 {[%clk 0:00:08.9]} 27. c4 {[%clk 0:00:15.5]} 27...
Bf6 {[%clk 0:00:08.8]} 28. Nb5 {[%clk 0:00:13.4]} 28... a6 {[%clk 0:00:07.1]}
29. Na3 {[%clk 0:00:11.4]} 29... h6 {[%clk 0:00:07.1]} 30. Kd1 {[%clk
0:00:10.2]} 30... g5 {[%clk 0:00:06.9]} 31. Re2 {[%clk 0:00:08.9]} 31... Bc3
{[%clk 0:00:05.8]} 32. Rc2 {[%clk 0:00:08.4]} 32... Bb4 {[%clk 0:00:05.5]} 33.
Nb1 {[%clk 0:00:07.8]} 33... Bc5 {[%clk 0:00:04.8]} 34. Nc3 {[%clk 0:00:07.2]}
34... Ke6 {[%clk 0:00:04.7]} 35. Ne4 {[%clk 0:00:07.2]} 35... Ke7 {[%clk
0:00:04.2]} 36. Nxc5 {[%clk 0:00:06.5]} 36... dxc5 {[%clk 0:00:02.4]} 37. Re2+
{[%clk 0:00:07.4]} 37... Kf6 {[%clk 0:00:01.6]} 38. Kc2 {[%clk 0:00:08.3]} 38...
Rd8 {[%clk 0:00:01.4]} 39. Kc3 {[%clk 0:00:09.2]} 39... Kf7 {[%clk 0:00:01.5]}
40. a3 {[%clk 0:00:09.3]} 40... Kg6 {[%clk 0:00:02.4]} 41. b4 {[%clk 0:00:09.4]}
41... Kg7 {[%clk 0:00:03]} 42. bxc5 {[%clk 0:00:09.1]} 42... Kf8 {[%clk
0:00:03.6]} 43. cxb6 {[%clk 0:00:08.7]} 43... Rb8 {[%clk 0:00:02.5]} 44. c5
{[%clk 0:00:08.6]} 44... Rc8 {[%clk 0:00:02.3]} 45. Kc4 {[%clk 0:00:08.9]} 45...
Rc6 {[%clk 0:00:02.1]} 46. d4 {[%clk 0:00:09.1]} 46... Rc8 {[%clk 0:00:01.6]}
47. d5 {[%clk 0:00:08.3]} 47... a5 {[%clk 0:00:01.8]} 48. Kb5 {[%clk 0:00:08.1]}
48... Rb8 {[%clk 0:00:01.3]} 49. d6 {[%clk 0:00:08.3]} 49... Kf7 {[%clk
0:00:01.2]} 50. Re7+ {[%clk 0:00:06.2]} 1-0

[Event "Betsys MČR v online bleskovém šachu 2021"]
[Site "Chess.com"]
[Date "2021.04.17"]
[Round "8"]
[White "jonvon640"]
[Black "Zelezny1984"]
[Result "0-1"]
[WhiteElo "1686"]
[BlackElo "2055"]
[TimeControl "180+1"]
[EndTime "10:22:13 PDT"]
[Termination "Uživatel Zelezny1984 zvítězil na čas"]

1. e4 {[%clk 0:02:50.5]} 1... c5 {[%clk 0:03:00.1]} 2. Nf3 {[%clk 0:02:49.4]}
2... a6 {[%clk 0:02:59.2]} 3. d4 {[%clk 0:02:47.6]} 3... cxd4 {[%clk 0:03:00.1]}
4. Nxd4 {[%clk 0:02:47.6]} 4... Nf6 {[%clk 0:03:00.7]} 5. e5 {[%clk 0:02:42.8]}
5... Qa5+ {[%clk 0:02:59.4]} 6. c3 {[%clk 0:02:39.8]} 6... Qxe5+ {[%clk
0:03:00.3]} 7. Qe2 {[%clk 0:02:39.8]} 7... Qxe2+ {[%clk 0:03:00.1]} 8. Bxe2
{[%clk 0:02:40.7]} 8... Nc6 {[%clk 0:02:59.5]} 9. Be3 {[%clk 0:02:39.1]} 9... e5
{[%clk 0:02:44.7]} 10. Nxc6 {[%clk 0:02:35.6]} 10... bxc6 {[%clk 0:02:45.6]} 11.
Nd2 {[%clk 0:02:34.3]} 11... d5 {[%clk 0:02:40.8]} 12. Nb3 {[%clk 0:02:31.9]}
12... Bg4 {[%clk 0:02:22]} 13. h3 {[%clk 0:02:28.3]} 13... Bxe2 {[%clk
0:02:21.6]} 14. Kxe2 {[%clk 0:02:29.2]} 14... Nd7 {[%clk 0:02:15.2]} 15. Rad1
{[%clk 0:02:24.1]} 15... Be7 {[%clk 0:02:03.9]} 16. f4 {[%clk 0:02:21.4]} 16...
f6 {[%clk 0:01:58.2]} 17. fxe5 {[%clk 0:02:18.3]} 17... fxe5 {[%clk 0:01:59.1]}
18. Rhf1 {[%clk 0:02:16]} 18... Rf8 {[%clk 0:01:53.8]} 19. Rxf8+ {[%clk
0:02:12.9]} 19... Kxf8 {[%clk 0:01:54.7]} 20. Rf1+ {[%clk 0:02:12]} 20... Ke8
{[%clk 0:01:47.4]} 21. g4 {[%clk 0:02:05.8]} 21... a5 {[%clk 0:01:47.3]} 22. a4
{[%clk 0:02:01.4]} 22... Rb8 {[%clk 0:01:30]} 23. Nxa5 {[%clk 0:01:57.4]} 23...
Rxb2+ {[%clk 0:01:30.5]} 24. Kd3 {[%clk 0:01:56.3]} 24... c5 {[%clk 0:01:24.6]}
25. c4 {[%clk 0:01:40.5]} 25... d4 {[%clk 0:01:18.4]} 26. Bc1 {[%clk 0:01:34.2]}
26... Ra2 {[%clk 0:01:18.4]} 27. Nc6 {[%clk 0:01:27.9]} 27... Bd6 {[%clk
0:01:17.2]} 28. Ke4 {[%clk 0:01:26.3]} 28... Rxa4 {[%clk 0:01:09.9]} 29. Kd5
{[%clk 0:01:25]} 29... Bc7 {[%clk 0:01:02.7]} 30. Bg5 {[%clk 0:01:16.7]} 30...
e4 {[%clk 0:00:55.1]} 31. Be7 {[%clk 0:01:09.9]} 31... e3 {[%clk 0:00:39.6]} 32.
Re1 {[%clk 0:00:45.6]} 32... Ra6 {[%clk 0:00:38.3]} 33. h4 {[%clk 0:00:38.5]}
33... Bg3 {[%clk 0:00:36.1]} 34. Re2 {[%clk 0:00:36.3]} 34... Rxc6 {[%clk
0:00:33.8]} 35. Kxc6 {[%clk 0:00:34.4]} 35... Kxe7 {[%clk 0:00:34.3]} 36. Kd5
{[%clk 0:00:33.8]} 36... Bxh4 {[%clk 0:00:31.5]} 37. Ke4 {[%clk 0:00:29.1]}
37... Bf2 {[%clk 0:00:31.2]} 38. Kf5 {[%clk 0:00:26.2]} 38... Kd6 {[%clk
0:00:28.9]} 39. g5 {[%clk 0:00:22.8]} 39... d3 {[%clk 0:00:29.2]} 40. Ra2 {[%clk
0:00:19.9]} 40... d2 {[%clk 0:00:24.3]} 41. Ra6+ {[%clk 0:00:16.1]} 41... Ke7
{[%clk 0:00:24.7]} 42. Re6+ {[%clk 0:00:14.9]} 42... Kd8 {[%clk 0:00:23.3]} 43.
Rd6 {[%clk 0:00:13.4]} 43... e2 {[%clk 0:00:21.3]} 44. Rxd2 {[%clk 0:00:13]}
44... e1=Q {[%clk 0:00:21.1]} 45. g6 {[%clk 0:00:12.5]} 45... hxg6+ {[%clk
0:00:18]} 46. Kxg6 {[%clk 0:00:11.6]} 46... Qxd2 {[%clk 0:00:18.1]} 47. Kh7
{[%clk 0:00:11.7]} 47... Qd4 {[%clk 0:00:17.1]} 48. Kg8 {[%clk 0:00:11.1]} 48...
g5 {[%clk 0:00:16.4]} 49. Kf7 {[%clk 0:00:10.4]} 49... g4 {[%clk 0:00:16.4]} 50.
Ke6 {[%clk 0:00:09.3]} 50... g3 {[%clk 0:00:17.3]} 51. Kf7 {[%clk 0:00:08.7]}
51... g2 {[%clk 0:00:17.4]} 52. Ke6 {[%clk 0:00:07.9]} 52... Qxc4+ {[%clk
0:00:17.7]} 53. Kf5 {[%clk 0:00:04.5]} 53... Qd5+ {[%clk 0:00:16.4]} 54. Kf4
{[%clk 0:00:03.3]} 54... Qe5+ {[%clk 0:00:15.5]} 55. Kf3 {[%clk 0:00:02.7]}
55... Qe3+ {[%clk 0:00:15.8]} 56. Kxg2 {[%clk 0:00:02.2]} 56... Be1 {[%clk
0:00:12.2]} 0-1